[Event "Indian Blitz Championship 2023"]
[Site "Nashik"]
[Date "2024.03.07"]
[Round "7.3"]
[White "Mitrabha, Guha"]
[Black "Sai Agni Jeevitesh, J."]
[Result "1-0"]
[ECO "A13"]
[WhiteElo "2526"]
[BlackElo "2285"]
[Annotator "TA"]
[PlyCount "83"]
[EventDate "2024.03.07"]
[EventType "blitz"]
[EventCountry "IND"]
[SourceTitle "playchess.com"]
[Source "ChessBase"]
[SourceQuality "1"]
[TimeControl "180+2"]

{[%evp 9,83,9,7,0,12,21,12,0,8,-13,-2,-13,0,0,0,-17,-10,-25,0,0,0,-33,-32,-36,-13,-27,-27,-38,-6,-33,-20,-47,-21,-105,-9,-13,-13,-18,-18,-126,-83,-76,0,-21,515,520,438,431,639,641,998,393,400,400,400,404,404,396,527,514,584,583,605,590,729,727,783,804,810,813,2119,1412,29988,29989,29990,29986]} 1. Nf3 {[%emt 0:00:01]} d5 {[%emt 0:00:02]} 2. c4 {[%emt 0:00:01]} e6 {[%emt 0:00:01]} 3. e3 {[%emt 0:00:01]} Nf6 {[%emt 0:00:03]} 4. b3 {[%emt 0:00:01]} Bd6 {[%emt 0:00:04]} 5. Bb2 {[%emt 0:00:01]} Nbd7 {[%emt 0:00:06]} 6. Nc3 {[%emt 0:00:01]} a6 {[%emt 0:00:02]} 7. d4 {[%emt 0:00:02]} b6 {[%emt 0:00:09]} 8. cxd5 {[%emt 0:00:01] The position is equal.} exd5 {[%emt 0:00:01]} 9. Bd3 {[%emt 0:00:01]} Bb7 {[%emt 0:00:01]} 10. O-O {[%emt 0:00:02]} Qe7 {[%emt 0:00:01]} 11. Rc1 {[%emt 0:00:01]} O-O {[%emt 0:00:02]} 12. Qe2 {[%emt 0:00:02]} Rfe8 {[%emt 0:00:04]} 13. Rfd1 {[%emt 0:00:08]} g6 {[%emt 0:00:05]} 14. h3 {[%emt 0:00:05]} Ne4 {[%emt 0:00:28]} 15. Qc2 {[%emt 0:00:15]} f5 {[%emt 0:00:08]} 16. Ne2 {[%emt 0:00:01][%cal Of3e5]} Ndf6 {[%emt 0:00:16][%cal Oe4f2] [#] ...Nxf2! is the strong threat.} 17. Ne5 {[%emt 0:00:06]} c5 {[%emt 0:00:10]} 18. f3 {[%emt 0:00:07]} Ng5 {[%emt 0:00:05]} 19. Ba1 {[%emt 0:00:21]} Rac8 {[%emt 0:00:01] Threatens to win with ...cxd4.} (19... cxd4 {looks sharper.} 20. f4 Rac8 21. Qb1 Rxc1 22. Qxc1 Bxe5 23. fxg5 Nh5) 20. Qb2 {[%emt 0:00:02]} cxd4 {[%emt 0:00:09]} 21. exd4 {[%emt 0:00:05]} (21. Rxc8 $11 {keeps the balance.} Bxc8 22. exd4) 21... Ne6 {[%emt 0:00:10]} ({Black should try} 21... Ba3 $17 22. Qd2 Bxc1 23. Nxc1 Nf7) 22. Rxc8 $11 {[%emt 0:00:03]} Rxc8 {[%emt 0:00:01]} 23. Qd2 {[%emt 0:00:21]} Nh5 {[%emt 0:00:05]} 24. g4 {[%emt 0:00:17]} (24. Qe3 $11) 24... fxg4 $17 {[%emt 0:00:08]} 25. hxg4 {[%emt 0:00:01]} Nf6 {[%emt 0:00:15]} (25... Rf8 $17 26. gxh5 Ng5) 26. Kg2 {[%emt 0:00:11] [#]} Nxd4 $2 {[%emt 0:00:24][%mdl 8192] A mistake that costs the game.} 27. Nxg6 $18 {[%emt 0:00:18]} (27. Bxd4 Bxe5 28. Qg5 Bxd4 29. Nxd4 Re8 $11) 27... hxg6 {[%emt 0:00:55]} 28. Bxd4 {[%emt 0:00:02]} Bc5 {[%emt 0:00:00]} (28... Nxg4 $142 29. Rh1 (29. fxg4 Qh4 $18) 29... Ne5) 29. Qg5 {[%emt 0:00:08]} Bxd4 {[%emt 0:00:01]} 30. Qxg6+ $2 {[%emt 0:00:02]} (30. Nxd4 Rc7 31. Rh1 (31. Bxg6 Bc8 $18) (31. Qxg6+ Qg7 $18)) 30... Qg7 {[%emt 0:00:00]} 31. Qxg7+ {[%emt 0:00:01]} Kxg7 {[%emt 0:00:01]} 32. Nxd4 {[%emt 0:00:02]} Kf7 {[%emt 0:00:02]} 33. Kg3 {[%emt 0:00:13]} b5 {[%emt 0:00:01]} 34. g5 {[%emt 0:00:03]} Nh5+ {[%emt 0:00:02]} 35. Kg4 {[%emt 0:00:02]} Ng7 {[%emt 0:00:02]} 36. f4 {[%emt 0:00:03][%cal Bf3f4,Bf4f5,Bf5f6][%mdl 32]} Rc3 {[%emt 0:00:05]} 37. f5 {[%emt 0:00:04]} Bc8 {[%emt 0:00:00]} 38. Kf4 {[%emt 0:00:02]} Nh5+ {[%emt 0:00:01]} 39. Ke5 {[%emt 0:00:01]} Bb7 {[%emt 0:00:06]} 40. f6 {[%emt 0:00:06]} Rc8 {[%emt 0:00:01]} 41. g6+ {[%emt 0:00:02]} Kf8 {[%emt 0:00:02]} 42. Ne6+ {[%emt 0:00:02] Weighted Error Value: White=0.30/Black=0.64.  Loses game:     	---       	Black=1      Mistake:       	White=2     	Black=3      Inaccurate:     	White=3     	Black=4      OK:         	White=11    	Black=8      Best:        	White=1     	---} 1-0

[Event "Indian Blitz Championship 2023"]
[Site "Nashik"]
[Date "2024.03.07"]
[Round "7.4"]
[White "Wagh Suyog"]
[Black "Ghosh, Diptayan"]
[Result "0-1"]
[ECO "A14"]
[WhiteElo "2250"]
[BlackElo "2559"]
[Annotator "TA"]
[PlyCount "60"]
[EventDate "2024.03.07"]
[EventType "blitz"]
[EventCountry "IND"]
[SourceTitle "playchess.com"]
[Source "ChessBase"]
[SourceQuality "1"]
[TimeControl "180+2"]

{[%evp 14,60,26,20,31,11,22,10,15,12,16,-1,50,-12,23,-36,17,-44,-41,-52,-25,-137,-140,-162,-152,-230,-238,-225,-238,-234,-225,-372,-369,-346,-366,-354,-356,-1343,-1336,-1263,-1202,-797,-231,-1368,-1452,-1356,-1352,-1144,-1147]} 1. Nf3 {[%emt 0:00:01]} d5 {[%emt 0:00:01]} 2. g3 {[%emt 0:00:01]} Nf6 {[%emt 0:00:00]} 3. Bg2 {[%emt 0:00:01]} e6 {[%emt 0:00:01]} 4. c4 {[%emt 0:00:05]} Be7 {[%emt 0:00:01]} 5. b3 {[%emt 0:00:03]} O-O {[%emt 0:00:02]} 6. Bb2 {[%emt 0:00:01]} a5 {[%emt 0:00:01]} 7. O-O {[%emt 0:00:49]} c6 {[%emt 0:00:03]} 8. Qc2 {[%emt 0:00:04]} b6 {[%emt 0:00:02]} 9. d3 {[%emt 0:00:10]} Bb7 {[%emt 0:00:10]} 10. e4 {[%emt 0:00:06]} c5 {[%emt 0:00:08] The position is equal.} 11. exd5 {[%emt 0:00:26]} exd5 {[%emt 0:00:01]} 12. Nc3 {[%emt 0:00:00]} Na6 {[%emt 0:00:21]} (12... Nc6 $11) 13. a3 {[%emt 0:00:03]} (13. Ne5 $14) 13... Nc7 {[%emt 0:00:02]} 14. Rfe1 {[%emt 0:00:02]} (14. Na4 $11) 14... Re8 {[%emt 0:00:01]} ({Black should try} 14... d4 $15 15. Nb1 Bd6) 15. Rad1 {[%emt 0:00:11]} ({Better is} 15. Ne5 $11) 15... d4 $15 {[%emt 0:00:12]} 16. Nb1 {[%emt 0:00:02]} Ne6 {[%emt 0:00:04][%cal Oa5a4]} 17. Ne5 {[%emt 0:00:09]} (17. Bc1 $11 {remains equal.}) 17... Bxg2 $17 {[%emt 0:00:03]} 18. Kxg2 {[%emt 0:00:01]} Bd6 {[%emt 0:02:25] ...Bxe5 is the strong threat.} 19. f4 {[%emt 0:00:13]} (19. Nd2 $17) 19... Bxe5 $19 {[%emt 0:00:00]} 20. fxe5 {[%emt 0:00:01]} Ng4 {[%emt 0:00:00]} 21. Bc1 {[%emt 0:00:01] Dodges Ne3+} f6 {[%emt 0:00:00]} 22. exf6 {[%emt 0:00:03]} (22. Re2 $142) 22... Qxf6 {[%emt 0:00:00]} 23. Rf1 {[%emt 0:00:14]} Qg6 {[%emt 0:00:00]} 24. Rde1 {[%emt 0:00:02] Repels Ne3+} Ng5 {[%emt 0:00:00] A dynamic duo of knights.} 25. Kh1 $2 {[%emt 0:00:30] [#]} (25. Bxg5 Qxg5 26. Kh1) 25... Rxe1 {[%emt 0:00:00]} 26. Rxe1 {[%emt 0:00:01]} Rf8 {[%emt 0:00:00]} 27. Bxg5 {[%emt 0:00:20]} Qxg5 $2 $40 {[%emt 0:00:00][%mdl 128] Black attacks with force.} (27... Rf2 28. Qc1 Qxd3 (28... Rxh2+ $2 29. Kg1 $19)) 28. Qg2 {[%emt 0:00:05]} (28. Qe2) 28... Nf2+ {[%emt 0:00:00] Black is clearly winning.} 29. Kg1 {[%emt 0:00:02]} Nxd3 {[%emt 0:00:00]} 30. h4 {[%emt 0:00:11]} Nxe1 {[%emt 0:00:00] Weighted Error Value: White=0.86/Black=0.29 (precise) .  Mistake:       	White=7     	Black=2      Inaccurate:     	---       	Black=2      OK:         	White=2     	Black=7      Best:        	White=2     	Black=3} 0-1

[Event "Indian Blitz Championship 2023"]
[Site "Nashik"]
[Date "2024.03.07"]
[Round "7.5"]
[White "Manish Anto Cristiano F"]
[Black "Karthik Venkataraman"]
[Result "1/2-1/2"]
[ECO "C79"]
[WhiteElo "2286"]
[BlackElo "2609"]
[Annotator "TA"]
[PlyCount "109"]
[EventDate "2024.03.07"]
[EventType "blitz"]
[EventCountry "IND"]
[SourceTitle "playchess.com"]
[Source "ChessBase"]
[SourceQuality "1"]
[TimeControl "180+2"]

{[%evp 9,109,18,44,10,10,-6,0,0,4,0,0,0,1,0,-2,0,0,-44,-27,-37,-54,-54,-50,-53,-56,-51,-28,-28,-17,-50,-33,-43,-43,-69,-57,-63,0,-35,27,25,60,45,42,0,2,0,0,-53,-62,-79,-17,-97,0,0,13,17,14,7,10,0,0,0,98,104,89,8,8,0,0,0,0,0,0,0,0,0,0,0,0,0,0,0,0,0,0,-7,0,0,0,0,0,0,0,0,0,0,0,0,0,0,0,0]} 1. e4 {[%emt 0:00:01]} e5 {[%emt 0:00:00]} 2. Nf3 {[%emt 0:00:01]} Nc6 {[%emt 0:00:01]} 3. Bb5 {[%emt 0:00:01]} a6 {[%emt 0:00:01]} 4. Ba4 {[%emt 0:00:00]} Nf6 {[%emt 0:00:01]} 5. O-O {[%emt 0:00:02]} d6 {[%emt 0:00:03][%cal Of8e7]} 6. c4 {[%emt 0:00:02]} Bg4 {[%emt 0:00:04]} 7. Nc3 {[%emt 0:00:03]} Nd7 {[%emt 0:00:03]} 8. h3 {[%emt 0:00:04]} Bxf3 {[%emt 0:00:04]} 9. Qxf3 {[%emt 0:00:02]} Nd4 {[%emt 0:00:03]} 10. Qd1 {[%emt 0:00:02]} Be7 {[%emt 0:00:06]} 11. Ne2 {[%emt 0:00:06]} Nxe2+ {[%emt 0:00:08]} 12. Qxe2 {[%emt 0:00:01]} c6 {[%emt 0:00:02]} 13. f4 {[%emt 0:00:15]} Nc5 {[%emt 0:00:05]} 14. Bc2 {[%emt 0:00:03]} Ne6 {[%emt 0:00:01]} 15. d3 {[%emt 0:00:07]} exf4 {[%emt 0:00:04]} 16. Bxf4 {[%emt 0:00:03]} Bf6 {[%emt 0:00:02]} 17. Rab1 {[%emt 0:00:22]} Be5 {[%emt 0:00:15]} 18. Be3 {[%emt 0:00:11]} O-O {[%emt 0:00:05]} 19. Qf2 {[%emt 0:00:05]} c5 {[%emt 0:00:02]} 20. b4 {[%emt 0:00:01]} b6 {[%emt 0:00:01]} 21. bxc5 {[%emt 0:00:01]} bxc5 {[%emt 0:00:00]} (21... dxc5 {simplifies} 22. g3 Bd4 23. Kg2 Bxe3 24. Qxe3 Nd4) 22. Rb7 {[%emt 0:00:02]} Qe8 {[%emt 0:00:34]} ({Black should try} 22... Nd4 $1 $15) 23. Bd1 {[%emt 0:00:41]} Bd4 {[%emt 0:00:34] Black is weak on the light squares} ({Better is} 23... Nd4 $15) 24. Bg4 $11 {[%emt 0:00:04]} Bxe3 {[%emt 0:00:01]} 25. Qxe3 {[%emt 0:00:02]} Nd4 {[%emt 0:00:06]} 26. Qf4 {[%emt 0:00:07]} (26. Qg5 $5) 26... Rd8 {[%emt 0:00:02]} 27. Kh1 {[%emt 0:00:09]} Nc6 {[%emt 0:00:14]} 28. Bh5 {[%emt 0:00:21]} (28. Qg3 $11) 28... Ne5 $15 {[%emt 0:00:04]} 29. Qg5 {[%emt 0:00:04]} Rd7 {[%emt 0:00:18]} (29... Rb8 $17 30. Rxb8 Qxb8) 30. Rb6 {[%emt 0:00:02]} (30. Rb3 $11 {remains equal.}) 30... a5 {[%emt 0:00:09]} (30... Nxd3 $17 31. Bg4 Rd8) 31. Bg4 {[%emt 0:00:04]} Qd8 {[%emt 0:00:06]} 32. Qxd8 {[%emt 0:00:02]} Rdxd8 {[%emt 0:00:00]} 33. Be2 {[%emt 0:00:01]} Rb8 {[%emt 0:00:17]} 34. Rfb1 {[%emt 0:00:01]} Rxb6 {[%emt 0:00:03]} 35. Rxb6 $11 {[%emt 0:00:01][%mdl 4096] Endgame. KRB-KRN} f5 {[%emt 0:00:04]} (35... Rd8 $11) 36. exf5 $16 {[%emt 0:00:02]} Rxf5 {[%emt 0:00:00] [#]} 37. Rxd6 {[%emt 0:00:01]} (37. Kg1 $1 $16) 37... Rf2 $11 {[%emt 0:00:01] The position is equal.} 38. Bg4 {[%emt 0:00:07]} Nxg4 {[%emt 0:00:10]} 39. hxg4 {[%emt 0:00:01]} Rxa2 {[%emt 0:00:00] KR-KR} 40. Rd5 {[%emt 0:00:01]} Rd2 {[%emt 0:00:05]} 41. Rxc5 {[%emt 0:00:01]} Rxd3 {[%emt 0:00:01]} 42. Rxa5 {[%emt 0:00:01]} Rd4 {[%emt 0:00:00][%csl LRc4,LRg4]} 43. c5 {[%emt 0:00:01][%cal Bc4c5,Bc5c6][%mdl 32]} Rxg4 {[%emt 0:00:02]} 44. c6 {[%emt 0:00:04]} Rc4 {[%emt 0:00:01]} 45. Ra8+ {[%emt 0:00:04]} Kf7 {[%emt 0:00:01]} 46. Rc8 {[%emt 0:00:01]} Ke6 {[%emt 0:00:12]} 47. c7 {[%emt 0:00:02]} Kd7 {[%emt 0:00:00]} 48. Rg8 {[%emt 0:00:01]} Rxc7 {[%emt 0:00:01]} 49. Rxg7+ {[%emt 0:00:01]} Kd6 {[%emt 0:00:01]} 50. Rxc7 {[%emt 0:00:02]} Kxc7 {[%emt 0:00:00]} 51. Kh2 {[%emt 0:00:01]} Kd6 {[%emt 0:00:01]} 52. Kh3 {[%emt 0:00:01]} Ke6 {[%emt 0:00:00]} 53. Kg4 {[%emt 0:00:01]} Kf6 {[%emt 0:00:01]} 54. Kh5 {[%emt 0:00:00]} Kg7 {[%emt 0:00:01]} 55. Kg5 {[%emt 0:00:01] Weighted Error Value: White=0.15 (very precise) /Black=0.15 (very precise) .  Mistake:       	White=3     	Black=5      Inaccurate:     	White=5     	Black=1      OK:         	White=18    	Black=23     Best:        	White=1     	Black=3} 1/2-1/2

[Event "Indian Blitz Championship 2023"]
[Site "Nashik"]
[Date "2024.03.07"]
[Round "7.6"]
[White "Ravi, Teja S."]
[Black "Srihari L R"]
[Result "1/2-1/2"]
[ECO "D02"]
[WhiteElo "2437"]
[BlackElo "2490"]
[Annotator "TA"]
[PlyCount "75"]
[EventDate "2024.03.07"]
[EventType "blitz"]
[EventCountry "IND"]
[SourceTitle "playchess.com"]
[Source "ChessBase"]
[SourceQuality "1"]
[TimeControl "180+2"]

{[%evp 9,75,0,10,1,31,18,33,25,34,29,27,15,21,-73,-91,-79,-84,-90,-85,-90,-91,-93,-17,-18,-11,-14,-17,-13,-13,-11,-12,-15,-12,-12,59,50,73,33,108,100,93,0,0,-10,-8,-6,-3,-3,-10,-10,-8,-68,-63,-70,-7,-21,0,-62,0,-23,0,-61,0,-29,0,-73,0,-33]} 1. d4 {[%emt 0:00:02]} d5 {[%emt 0:00:01]} 2. Nf3 {[%emt 0:00:01]} Nf6 {[%emt 0:00:01]} 3. Bf4 {[%emt 0:00:01]} c5 {[%emt 0:00:01]} 4. e3 {[%emt 0:00:00]} Nc6 {[%emt 0:00:01]} 5. Nbd2 {[%emt 0:00:01]} cxd4 {[%emt 0:00:05]} 6. exd4 {[%emt 0:00:01]} Nh5 {[%emt 0:00:01]} 7. Be3 {[%emt 0:00:08]} g6 {[%emt 0:00:03]} 8. c3 {[%emt 0:00:10] White is slightly better.} Bg7 {[%emt 0:00:02]} 9. Be2 {[%emt 0:00:08]} Qd6 {[%emt 0:00:02]} 10. g3 {[%emt 0:02:50]} O-O {[%emt 0:00:06]} 11. O-O {[%emt 0:00:00] [#]} (11. Nh4 $11 {keeps the balance.}) 11... f5 $1 $17 {[%emt 0:00:16]} 12. Ne5 {[%emt 0:00:00]} f4 {[%emt 0:00:04]} 13. gxf4 {[%emt 0:00:00]} Nxf4 {[%emt 0:00:03]} 14. Bxf4 {[%emt 0:00:00]} Rxf4 {[%emt 0:00:03]} 15. Nd3 {[%emt 0:00:00] [#]} Bh3 {[%emt 0:00:46]} 16. Nxf4 $11 {[%emt 0:00:00]} Qxf4 {[%emt 0:00:02]} 17. Bf3 $1 {[%emt 0:00:00]} Qg5+ {[%emt 0:01:18]} (17... Rf8 {seems wilder.} 18. Re1 Kh8 19. Kh1 e5) 18. Kh1 {[%emt 0:00:00]} Bxf1 {[%emt 0:00:03]} 19. Nxf1 {[%emt 0:00:00]} Kh8 {[%emt 0:00:05]} 20. Qe2 {[%emt 0:00:00]} e5 {[%emt 0:00:11]} 21. dxe5 {[%emt 0:00:00]} Nxe5 {[%emt 0:00:01]} (21... Qxe5 $11 22. Re1 (22. Qxe5 Nxe5 23. Bxd5 Nd3 $11) 22... Rd8) 22. Bxd5 $14 {[%emt 0:00:00]} Rf8 {[%emt 0:00:01]} 23. Ng3 {[%emt 0:00:02] Dodges Qf5} Ng4 {[%emt 0:00:06]} ({Black should play} 23... Qf4 $14) 24. Bf3 $16 {[%emt 0:00:01]} (24. Bxb7 $2 Rxf2 (24... Nxf2+ 25. Kg2 $15) 25. Re1 Rxe2 $19 (25... Rxh2+ $2 26. Qxh2 Nxh2 27. Re8+ $19)) 24... Ne5 {[%emt 0:00:04]} 25. Bg2 {[%emt 0:00:03]} (25. Bxb7 $16 h5 26. Re1) 25... Ng4 $36 {[%emt 0:00:07][%mdl 2048] Black is more active.} 26. Rf1 {[%emt 0:00:02][%cal Og2f3]} (26. Bxb7 $2 {too greedy.} Rxf2 (26... Nxf2+ 27. Kg2 $17) 27. Re1 Rxe2 $19 (27... Rxh2+ $2 28. Qxh2 Nxh2 29. Re8+ $19)) 26... Qh4 {[%emt 0:00:06][%csl Gg4][%cal Rh4h2]} 27. h3 {[%emt 0:00:03] [#]} Nxf2+ {[%emt 0:00:07]} 28. Rxf2 {[%emt 0:00:00]} Qxg3 {[%emt 0:00:01]} 29. Rxf8+ {[%emt 0:00:03]} Bxf8 {[%emt 0:00:01]} 30. Bxb7 {[%emt 0:00:11]} ({Better is} 30. Qf3 $11 Qe1+ 31. Qf1 Qxf1+ 32. Bxf1) 30... Qxh3+ {[%emt 0:00:02][%mdl 4096] Endgame. KQB-KQB} 31. Qh2 {[%emt 0:00:04]} Qf1+ {[%emt 0:00:02]} (31... Qf5 $15) 32. Qg1 {[%emt 0:00:01]} Qh3+ {[%emt 0:00:01]} (32... Qxg1+ {simplifies} 33. Kxg1 Kg7 34. Kf2 Kf6) 33. Qh2 {[%emt 0:00:00]} Qf1+ {[%emt 0:00:11]} 34. Qg1 {[%emt 0:00:01]} Qh3+ {[%emt 0:00:02]} 35. Qh2 {[%emt 0:00:00]} Qf1+ {[%emt 0:00:02]} 36. Qg1 {[%emt 0:00:21]} Qh3+ {[%emt 0:00:02]} 37. Qh2 {[%emt 0:00:00]} Qf1+ {[%emt 0:00:02]} 38. Qg1 {[%emt 0:00:00] Weighted Error Value: White=0.20 (precise) /Black=0.26 (precise) .  Mistake:       	White=3     	Black=4      Inaccurate:     	White=6     	Black=4      OK:         	White=7     	Black=5      Best:        	White=5     	Black=4      Strong:       	White=1     	Black=1      Brilliant:      	---       	Black=1} 1/2-1/2

[Event "Indian Blitz Championship 2023"]
[Site "Nashik"]
[Date "2024.03.07"]
[Round "7.7"]
[White "Nitin, S.."]
[Black "Dixit, Nikhil"]
[Result "0-1"]
[ECO "B30"]
[WhiteElo "2338"]
[BlackElo "2334"]
[Annotator "TA"]
[PlyCount "95"]
[EventDate "2024.03.07"]
[EventType "blitz"]
[EventCountry "IND"]
[SourceTitle "playchess.com"]
[Source "ChessBase"]
[SourceQuality "1"]
[TimeControl "180+2"]

{[%evp 9,95,20,31,34,44,36,38,29,43,30,29,26,26,0,37,37,46,30,36,0,15,-22,-13,-29,-31,-38,-14,-7,-13,-8,0,-41,0,0,14,18,23,29,33,24,24,8,30,22,46,19,31,27,18,1,3,4,5,0,0,0,4,0,4,4,4,4,6,0,12,12,57,-31,-31,-31,-27,-49,72,72,72,62,55,0,20,5,22,0,0,0,5,0,0,0]} 1. e4 {[%emt 0:00:02]} c5 {[%emt 0:00:05]} 2. Nf3 {[%emt 0:00:02]} Nc6 {[%emt 0:00:01]} 3. Bb5 {[%emt 0:00:03]} e6 {[%emt 0:00:02]} 4. c3 {[%emt 0:00:12]} Nge7 {[%emt 0:00:05]} 5. O-O {[%emt 0:00:04]} Ng6 {[%emt 0:00:02]} 6. d4 {[%emt 0:00:04]} cxd4 {[%emt 0:00:02]} 7. cxd4 {[%emt 0:00:01]} d5 {[%emt 0:00:01]} 8. e5 {[%emt 0:00:06] White is slightly better.} Be7 {[%emt 0:00:03]} 9. Nc3 {[%emt 0:00:10]} O-O {[%emt 0:00:03]} 10. Re1 {[%emt 0:00:03]} Bd7 {[%emt 0:00:14]} 11. Be3 {[%emt 0:00:09]} a6 {[%emt 0:00:01]} 12. Bd3 {[%emt 0:00:06]} f6 {[%emt 0:00:02]} 13. exf6 {[%emt 0:00:04]} Rxf6 {[%emt 0:00:06]} 14. Bc2 {[%emt 0:00:28]} Qf8 {[%emt 0:00:30]} 15. Ng5 {[%emt 0:00:32] [#] Qh5 is the strong threat.} h6 {[%emt 0:00:21]} 16. Nf3 {[%emt 0:00:01]} Bd6 {[%emt 0:00:10] Prevents Ne5.} 17. h3 {[%emt 0:00:15]} Qf7 {[%emt 0:00:16]} 18. Nh2 $1 {[%emt 0:00:05]} Bxh2+ {[%emt 0:00:22]} 19. Kxh2 {[%emt 0:00:01]} Rf8 {[%emt 0:00:05]} 20. a3 {[%emt 0:00:10]} Nce7 {[%emt 0:00:03]} (20... Nh4 $5 21. Rf1 Be8 $11) 21. Ne2 {[%emt 0:00:17]} Nf5 {[%emt 0:00:03]} 22. Bxf5 {[%emt 0:00:01]} Rxf5 {[%emt 0:00:06]} 23. Ng3 {[%emt 0:00:03]} Rf6 {[%emt 0:00:03]} 24. Rc1 {[%emt 0:00:01]} Bc6 {[%emt 0:00:02]} 25. Qh5 {[%emt 0:00:04]} Ne7 {[%emt 0:00:10]} 26. Qe2 {[%emt 0:00:05]} Rg6 {[%emt 0:00:07]} 27. Qd2 {[%emt 0:00:08]} Nf5 {[%emt 0:00:04]} 28. Nxf5 {[%emt 0:00:16]} Qxf5 {[%emt 0:00:02]} 29. Qc2 {[%emt 0:00:02]} Qxc2 {[%emt 0:00:14]} 30. Rxc2 {[%emt 0:00:01]} e5 {[%emt 0:00:02]} 31. g3 {[%emt 0:00:14]} e4 {[%emt 0:00:03]} 32. Kg2 {[%emt 0:00:03]} Re6 {[%emt 0:00:02]} 33. Rec1 {[%emt 0:00:03]} Rc8 {[%emt 0:00:08]} 34. h4 {[%emt 0:00:01]} Ree8 {[%emt 0:00:02]} 35. Rc5 {[%emt 0:00:01]} Kf7 {[%emt 0:00:02]} 36. b4 {[%emt 0:00:02][%cal Oa3a4]} Ke6 {[%emt 0:00:01] [#]} 37. a4 $1 {[%emt 0:00:02]} Bd7 {[%emt 0:00:06]} (37... Rg8 38. Bf4) 38. Bf4 {[%emt 0:00:07]} (38. Rc7 $14) 38... Rxc5 $15 {[%emt 0:00:05]} 39. Rxc5 {[%emt 0:00:02]} Bxa4 {[%emt 0:00:01][%mdl 4096] Endgame. KRB-KRB} 40. Rc7 {[%emt 0:00:01]} Bd1 {[%emt 0:00:08]} (40... Re7 $15 {stays ahead.}) 41. Rxg7 $16 {[%emt 0:00:08]} Bf3+ {[%emt 0:00:02]} 42. Kh2 {[%emt 0:00:00]} h5 {[%emt 0:00:00]} 43. Rc7 {[%emt 0:00:02] Dodges Rc8} ({White should play} 43. Rxb7 $14 Rc8 44. Rb6+ Ke7 45. g4 (45. Rxa6 Rc2 $14) 45... Bxg4 46. Rxa6) 43... b6 {[%emt 0:00:05] The position is equal.} 44. Rc6+ {[%emt 0:00:02]} Kf7 {[%emt 0:00:01]} 45. Rc7+ {[%emt 0:00:01]} Re7 {[%emt 0:00:02]} 46. Rc6 {[%emt 0:00:04]} a5 {[%emt 0:00:08]} 47. bxa5 {[%emt 0:00:02]} bxa5 {[%emt 0:00:01]} 48. Ra6 {[%emt 0:00:07][%mdl 32768] Prevents Ra7.   Weighted Error Value: White=0.13 (very precise) /Black=0.12 (very precise) .  Mistake:       	White=2     	Black=1      Inaccurate:     	White=5     	Black=3      OK:         	White=12    	Black=14     Best:        	White=2     	Black=1      Strong:       	White=1     	---       . Loss on time!?} 0-1